fUSD/lending_fUSD_20251214
["ID","MTS","AMOUNT","RATE_DAILY","PERIOD"]
[398473413,1765711841549,-1000.0,0.0001783,2]
[398473414,1765711841558,-160.02,0.00017843,2]
[398473415,1765711841568,-1000.0,0.00017848,2]
[398473416,1765711841577,-293.31370949,0.00017868,2]
[398473417,1765711841586,-1500.0,0.00017868,2]
[398473418,1765711841595,-500.0,0.00017868,2]
[398473419,1765711841604,-394.62953403,0.00017868,2]
[398473420,1765711841613,-500.0,0.00017868,2]
[398473421,1765711841623,-500.0,0.00017868,2]
[398473422,1765711841632,-1000.0,0.00017882,2]
[398473423,1765711841640,-198.3,0.00017886,2]
[398473424,1765711841650,-521.36050563,0.00017899,2]
[398473425,1765711841659,-500.0,0.00017899,2]
[398473426,1765711841669,-183.91956436,0.00017899,2]
[398473427,1765711841679,-117380.49176663,0.000179,2]
[398473428,1765711841702,-81040.50338872,0.000179,2]
[398473429,1765711841713,-22617.390165,0.000179,2]
[398473430,1765711841840,-151.0,0.00016438,2]
[398473431,1765711841849,-151.0,0.00016438,2]
[398473432,1765711841858,-151.0,0.00016438,2]
[398473433,1765711841867,-151.0,0.00016438,2]
[398473434,1765711841876,-151.0,0.00016438,2]
[398473435,1765711841885,-151.0,0.00016438,2]
[398473436,1765711841893,-33.54431186,0.000179,2]
[398473484,1765711847942,-363.4911405,0.000159,2]
[398473485,1765711847951,-166.13972283,0.0001599,2]
[398473486,1765711847960,-151.0,0.00016438,2]
[398473487,1765711847969,-151.0,0.00016438,2]
[398473488,1765711847977,-151.0,0.00016438,2]
[398473489,1765711847986,-151.0,0.00016438,2]
[398473490,1765711847995,-151.0,0.00016438,2]
[398473491,1765711848005,-202.584801,0.00016438,2]
[398473492,1765711848015,-2372.87676785,0.00016701,2]
[398473493,1765711848026,-1068.28331571,0.00016701,2]
[398473524,1765712183635,1500.0,0.00021778,30]
[398473525,1765712227464,1500.0,0.00021778,30]
[398473526,1765712227784,500.0,0.00015443,2]
[398473530,1765712275394,1500.0,0.00021778,30]
[398473532,1765712321632,1500.0,0.00021778,30]
[398473553,1765712467260,862.07,0.00013699,2]
[398473572,1765712643782,166.66,0.00014512,2]
[398473573,1765712643819,166.66,0.00014817,2]
[398473574,1765712643849,166.66,0.00015123,2]
[398473575,1765712643879,166.66,0.00015428,2]
[398473576,1765712643913,166.66,0.00015734,2]
[398473584,1765712710786,5000.0,0.00022,30]
[398473585,1765712722410,426.51,0.00015285,2]
[398473591,1765712765198,150.0,0.00015284,2]
[398473603,1765712862202,1000.0,0.00015232,2]
[398473608,1765712916328,4401.40228103,0.00015346,2]
[398473609,1765712916354,10000.01,0.00015346,2]
[398473610,1765712916380,5465.11771897,0.00015346,2]
[398473624,1765713031319,-1826.92164788,0.00015799,2]
[398473626,1765713031330,-500.0,0.00015799,2]
[398473628,1765713031341,-1932.135623,0.00015799,2]
[398473629,1765713031418,-1025.84305984,0.00015799,2]
[398473630,1765713031427,-5480.06654014,0.000158,2]
[398473631,1765713031438,-6592.95379072,0.000158,2]
[398473632,1765713031450,-15208.87515774,0.000158,2]
[398473633,1765713031461,-8068.56303637,0.000158,2]
[398473634,1765713031478,-18441.4,0.000158,2]
[398473635,1765713031489,-3753.07156661,0.000158,2]
[398473636,1765713031501,-7384.86883864,0.000158,2]
[398473637,1765713031512,-440.56810984,0.000158,2]
[398473638,1765713031523,-5879.39187,0.000158,2]
[398473639,1765713031534,-510.0,0.000158,2]
[398473640,1765713031545,-1650.0,0.000158,2]
[398473641,1765713031556,-446.45774624,0.000158,2]
[398473642,1765713031567,-890.89,0.000158,2]
[398473643,1765713031578,-85.62722689,0.000158,2]
[398473644,1765713031587,-192.30137816,0.00015884,2]
[398473646,1765713031596,-195.0,0.00015886,2]
[398473648,1765713031606,-207.96250345,0.00015888,2]
[398473671,1765713037368,-42.03749655,0.00015888,2]
[398473672,1765713037379,-195.0,0.00015893,2]
[398473673,1765713037388,-250.0,0.00015894,2]
[398473674,1765713037399,-151.0,0.00015896,2]
[398473675,1765713037407,-300.0,0.00015897,2]
[398473676,1765713037417,-1200.0,0.00015897,2]
[398473677,1765713037426,-347.75217434,0.00015898,2]
[398473678,1765713037436,-197.68869369,0.00015898,2]
[398473679,1765713037445,-500.0,0.00015898,2]
[398473680,1765713037454,-500.0,0.00015898,2]
[398473681,1765713037463,-500.0,0.00015898,2]
[398473682,1765713037472,-500.0,0.00015898,2]
[398473683,1765713037481,-500.0,0.00015898,2]
[398473684,1765713037490,-500.0,0.00015898,2]
[398473685,1765713037499,-500.0,0.00015898,2]
[398473686,1765713037508,-500.0,0.00015898,2]
[398473687,1765713037518,-500.0,0.00015898,2]
[398473688,1765713037528,-500.0,0.00015898,2]
[398473689,1765713037538,-500.0,0.00015898,2]
[398473690,1765713037548,-250.0,0.00015898,2]
[398473691,1765713037558,-500.0,0.00015898,2]
[398473692,1765713037568,-500.0,0.00015898,2]
[398473693,1765713037577,-500.0,0.00015898,2]
[398473694,1765713037587,-500.0,0.00015898,2]
[398473695,1765713037596,-500.0,0.00015898,2]
[398473696,1765713037606,-534.2514843,0.00015898,2]
[398473697,1765713037616,-500.0,0.00015898,2]
[398473698,1765713037625,-500.0,0.00015898,2]
[398473699,1765713037635,-500.0,0.00015898,2]
[398473701,1765713037644,-500.0,0.00015898,2]
[398473704,1765713037654,-500.0,0.00015898,2]
[398473705,1765713037663,-500.0,0.00015898,2]
[398473707,1765713037673,-520.37840131,0.00015898,2]
[398473710,1765713037683,-500.0,0.00015898,2]
[398473712,1765713037693,-500.0,0.00015898,2]
[398473713,1765713037702,-1200.0,0.00015898,2]
[398473715,1765713037712,-386.08,0.00015898,2]
[398473717,1765713037721,-192.30137816,0.00015898,2]
[398473719,1765713037730,-49116.12020665,0.00015899,2]
[398473722,1765713037746,-660.1508,0.00015899,2]
[398473724,1765713037757,-25352.52040275,0.00015899,2]
[398473727,1765713037768,-684871.2085906,0.00015899,2]
[398473729,1765713037778,-1492.881,0.00015899,2]
[398473731,1765713037787,-250.0,0.00015899,2]
[398473733,1765713037796,-231.32855262,0.00015899,2]
[398473735,1765713037805,-52586.3721,0.000159,2]
[398473737,1765713037814,-363.4911405,0.000159,2]
[398473739,1765713037823,-363.4911405,0.000159,2]
[398473741,1765713037832,-200.0,0.00015946,2]
[398473743,1765713037841,-502.0,0.00015998,2]
[398473745,1765713037850,-500.0,0.00015999,5]
[398473747,1765713037859,-1020.75945297,0.00015999,5]
[398473749,1765713037867,-508.9156175,0.00015999,2]
[398473751,1765713037876,-546.23,0.00015999,2]
[398473753,1765713037887,-504.03,0.00015999,2]
[398473754,1765713037898,-500.0,0.00015999,2]
[398473757,1765713037907,-5976.388,0.00016,2]
[398473758,1765713037917,-5284.90033072,0.00016032,2]
[398473760,1765713037927,-166.66,0.00016039,2]
[398473762,1765713037937,-150.0,0.00016101,2]
[398473765,1765713037947,-150.0,0.00016101,2]
[398473767,1765713037956,-150.0,0.00016101,2]
[398473769,1765713037966,-150.0,0.00016101,2]
[398473771,1765713037976,-150.0,0.00016101,2]
[398473773,1765713037985,-150.0,0.00016101,2]
[398473775,1765713037994,-300.0,0.00016121,2]
[398473777,1765713038002,-1000.0,0.00016121,2]
[398473779,1765713038011,-1000.0,0.00016121,2]
[398473781,1765713038021,-1000.0,0.00016121,2]
[398473783,1765713038031,-1000.0,0.00016121,2]
[398473785,1765713038041,-1000.0,0.00016121,2]
[398473787,1765713038050,-1000.0,0.00016121,2]
[398473789,1765713038059,-1000.0,0.00016121,2]
[398473790,1765713038068,-1000.0,0.00016121,2]
[398473793,1765713038078,-1000.0,0.00016121,2]
[398473795,1765713038088,-1000.0,0.00016121,2]
[398473796,1765713038098,-1000.0,0.00016121,2]
[398473798,1765713038107,-500.0,0.00016121,2]
[398473800,1765713038117,-500.0,0.00016121,2]
[398473802,1765713038126,-500.0,0.00016121,2]
[398473805,1765713038137,-574.12855637,0.00016121,2]
[398473807,1765713038147,-151.0,0.00016121,2]
[398473809,1765713038156,-386.08,0.00016172,2]
[398473811,1765713038166,-659.93468073,0.00016217,2]
[398473812,1765713038175,-202.53185192,0.00016232,2]
[398473814,1765713038185,-170.0,0.00016248,2]
[398473816,1765713038194,-5284.90033072,0.00016266,2]
[398473818,1765713038203,-2000.0,0.0001635,2]
[398473820,1765713038212,-2000.0,0.0001635,2]
[398473822,1765713038222,-2000.0,0.0001635,2]
[398473824,1765713038232,-2000.0,0.0001635,2]
[398473826,1765713038241,-2000.0,0.0001635,2]
[398473828,1765713038251,-2000.0,0.0001635,2]
[398473830,1765713038261,-2000.0,0.0001635,2]
[398473832,1765713038272,-2000.0,0.0001635,2]
[398473834,1765713038282,-2000.0,0.0001635,2]
[398473836,1765713038292,-2000.0,0.0001635,2]
[398473838,1765713038302,-2000.0,0.0001635,2]
[398473840,1765713038312,-2000.0,0.0001635,2]
[398473842,1765713038321,-2000.0,0.0001635,2]
[398473844,1765713038330,-2000.0,0.0001635,2]
[398473846,1765713038340,-2000.0,0.0001635,2]
[398473849,1765713038350,-1729.249,0.0001635,2]
[398473851,1765713038359,-705.66284815,0.00016419,2]
[398473852,1765713038369,-500.0,0.00016438,2]
[398473855,1765713038379,-500.0,0.00016438,2]
[398473856,1765713038388,-500.0,0.00016438,2]
[398473858,1765713038397,-500.0,0.00016438,2]
[398473861,1765713038407,-500.0,0.00016438,2]
[398473863,1765713038417,-500.0,0.00016438,2]
[398473865,1765713038426,-500.0,0.00016438,2]
[398473867,1765713038435,-500.0,0.00016438,2]
[398473869,1765713038445,-500.0,0.00016438,2]
[398473871,1765713038455,-212.31688408,0.00016438,2]
[398473873,1765713038465,-500.0,0.00016438,2]
[398473875,1765713038474,-500.0,0.00016438,2]
[398473877,1765713038483,-500.0,0.00016438,2]
[398473879,1765713038492,-500.0,0.00016438,2]
[398473881,1765713038502,-500.0,0.00016438,2]
[398473883,1765713038511,-500.0,0.00016438,2]
[398473885,1765713038521,-500.0,0.00016438,2]
[398473887,1765713038531,-500.0,0.00016438,2]
[398473889,1765713038540,-500.0,0.00016438,2]
[398473891,1765713038549,-500.0,0.00016438,2]
[398473893,1765713038559,-500.0,0.00016438,2]
[398473895,1765713038568,-600.0,0.00016438,2]
[398473897,1765713038578,-703.99,0.00016441,2]
[398473899,1765713038587,-386.08,0.00016446,2]
[398473901,1765713038596,-7073.0,0.00016451,2]
[398473903,1765713038606,-183.91956436,0.00016495,2]
[398473905,1765713038615,-516.06363268,0.00016495,2]
[398473907,1765713038624,-500.0,0.00016495,2]
[398473909,1765713038635,-500.0,0.00016495,2]
[398473911,1765713038644,-500.0,0.00016495,2]
[398473913,1765713038654,-500.0,0.00016495,2]
[398473915,1765713038664,-5284.90033072,0.00016499,2]
[398473917,1765713038674,-7073.0,0.00016588,2]
[398473919,1765713038683,-229.0,0.00016601,2]
[398473921,1765713038693,-574.12855637,0.00016669,2]
[398473923,1765713038703,-150.0,0.00016698,2]
[398473925,1765713038713,-386.08,0.0001672,2]
[398473927,1765713038724,-7073.0,0.00016725,2]
[398473929,1765713038734,-5284.90033072,0.00016733,2]
[398473930,1765713038744,-198.3,0.00016748,2]
[398473932,1765713038754,-559.91637451,0.00016773,2]
[398473934,1765713038763,-500.0,0.00016773,2]
[398473935,1765713038773,-622.20369641,0.00016773,2]
[398473937,1765713038784,-500.0,0.00016773,2]
[398473939,1765713038795,-500.0,0.00016773,2]
[398473941,1765713038804,-500.0,0.00016773,2]
[398473943,1765713038814,-500.42448479,0.00016773,2]
[398473944,1765713038823,-500.0,0.00016773,2]
[398473946,1765713038833,-500.64872299,0.00016773,2]
[398473948,1765713038843,-500.0,0.00016773,2]
[398473950,1765713038853,-500.0,0.00016773,2]
[398473951,1765713038863,-500.0,0.00016773,2]
[398473953,1765713038873,-500.0,0.00016773,2]
[398473955,1765713038882,-500.0,0.00016773,2]
[398473957,1765713038896,-500.48874049,0.00016773,2]
[398473958,1765713038905,-500.0,0.00016773,2]
[398473960,1765713038914,-501.65541213,0.00016773,2]
[398473962,1765713038924,-177.08742961,0.00016773,2]
[398473964,1765713038933,-500.0,0.00016773,2]
[398473965,1765713038942,-500.0,0.00016773,2]
[398473967,1765713038953,-500.0,0.00016773,2]
[398473969,1765713038963,-500.87932998,0.00016773,2]
[398473971,1765713038973,-500.0,0.00016773,2]
[398473973,1765713038982,-201.95861982,0.00016773,2]
[398473974,1765713038992,-500.0,0.00016773,2]
[398473976,1765713039002,-299.7668433,0.00016773,2]
[398473978,1765713039012,-151.0,0.00016773,2]
[398473979,1765713039022,-151.0,0.00016773,2]
[398473981,1765713039031,-151.0,0.00016773,2]
[398473983,1765713039041,-151.0,0.00016773,2]
[398473985,1765713039051,-171.08099914,0.00016821,2]
[398473987,1765713039061,-500.0,0.00016822,2]
[398473989,1765713039071,-500.0,0.00016822,2]
[398473990,1765713039081,-500.0,0.00016822,2]
[398473992,1765713039090,-7073.0,0.00016862,2]
[398473994,1765713039099,-198.3,0.00016862,2]
[398473996,1765713039109,-481.15230225,0.00016887,2]
[398473999,1765713039119,-500.0,0.00016899,2]
[398474002,1765713039128,-3451.0,0.00016921,2]
[398474003,1765713039139,-1324.0,0.00016921,2]
[398474005,1765713039148,-611.0,0.00016921,2]
[398474006,1765713039158,-1607.0,0.00016921,2]
[398474008,1765713039167,-1261.0,0.00016921,2]
[398474009,1765713039176,-589.0,0.00016921,2]
[398474010,1765713039185,-1196.0,0.00016921,2]
[398474011,1765713039194,-911.0,0.00016921,2]
[398474012,1765713039203,-6521.0,0.00016921,2]
[398474013,1765713039212,-2426.0,0.00016921,2]
[398474014,1765713039221,-4797.0,0.00016921,2]
[398474015,1765713039230,-5284.90033072,0.00016966,2]
[398474016,1765713039240,-297.12189153,0.00016973,2]
[398474017,1765713039250,-500.0,0.00016973,2]
[398474018,1765713039260,-500.0,0.00016973,2]
[398474019,1765713039270,-198.3,0.00016976,2]
[398474020,1765713039279,-500.0,0.00016986,2]
[398474021,1765713039289,-600.0,0.00016986,2]
[398474022,1765713039299,-1440.0,0.0001699,2]
[398474023,1765713039308,-5072.0,0.0001699,2]
[398474024,1765713039318,-386.12370949,0.00016994,2]
[398474025,1765713039327,-200.0,0.00016996,2]
[398474026,1765713039336,-150.0,0.00016996,2]
[398474028,1765713039345,-7073.0,0.00016999,2]
[398474030,1765713039354,-521.36050563,0.00016999,2]
[398474031,1765713039363,-500.0,0.00016999,2]
[398474032,1765713039373,-500.0,0.00016999,2]
[398474033,1765713039382,-150.0,0.00017,2]
[398474034,1765713039392,-150.0,0.00017,2]
[398474035,1765713039401,-3786.19798159,0.00017,2]
[398474036,1765713039410,-150.0,0.00017,2]
[398474037,1765713039419,-535.52303297,0.00017,2]
[398474038,1765713039429,-2909.48588072,0.00017,2]
[398474039,1765713039439,-150.0,0.00017,2]
[398474040,1765713039448,-6063.22228336,0.00017,2]
[398474041,1765713039457,-2000.0,0.00017,2]
[398474042,1765713039468,-1500.0,0.00017,2]
[398474043,1765713039477,-1500.0,0.00017,2]
[398474044,1765713039486,-1500.0,0.00017,2]
[398474045,1765713039496,-1500.0,0.00017,2]
[398474046,1765713039507,-1500.0,0.00017,2]
[398474047,1765713039517,-1500.0,0.00017,2]
[398474048,1765713039526,-1500.0,0.00017,2]
[398474049,1765713039535,-1500.0,0.00017,2]
[398474050,1765713039544,-1500.0,0.00017,2]
[398474051,1765713039554,-1500.0,0.00017,2]
[398474052,1765713039564,-1500.0,0.00017,2]
[398474053,1765713039573,-1500.0,0.00017,2]
[398474054,1765713039583,-1500.0,0.00017,2]
[398474055,1765713039592,-1500.0,0.00017,2]
[398474056,1765713039602,-1500.0,0.00017,2]
[398474057,1765713039611,-1500.0,0.00017,2]
[398474058,1765713039621,-1500.0,0.00017,2]
[398474059,1765713039631,-1500.0,0.00017,2]
[398474060,1765713039641,-1500.0,0.00017,2]
[398474061,1765713039650,-1500.0,0.00017,2]
[398474062,1765713039660,-1500.0,0.00017,2]
[398474063,1765713039670,-1500.0,0.00017,2]
[398474064,1765713039680,-1500.0,0.00017,2]
[398474065,1765713039690,-1500.0,0.00017,2]
[398474066,1765713039699,-250.0,0.00017,2]
[398474067,1765713039709,-151.0,0.00017,2]
[398474068,1765713039718,-151.0,0.00017,2]
[398474069,1765713039728,-151.0,0.00017,2]
[398474070,1765713039738,-151.0,0.00017,2]
[398474071,1765713039747,-151.0,0.00017,2]
[398474072,1765713039756,-256.119572,0.00017,2]
[398474073,1765713039766,-151.0,0.00017011,2]
[398474074,1765713039776,-171.08099914,0.00017037,2]
[398474075,1765713039785,-198.3,0.00017089,2]
[398474076,1765713039795,-480.71,0.00017123,2]
[398474077,1765713039804,-480.71,0.00017123,2]
[398474078,1765713039813,-480.71,0.00017123,2]
[398474079,1765713039822,-961.42,0.00017123,2]
[398474080,1765713039831,-480.71,0.00017123,2]
[398474081,1765713039840,-7073.0,0.00017136,2]
[398474082,1765713039850,-1000.0,0.00017136,2]
[398474083,1765713039858,-426.51,0.00017196,2]
[398474084,1765713039867,-198.3,0.00017203,2]
[398474085,1765713039877,-168.0,0.00017203,2]
[398474086,1765713039886,-151.0,0.00017233,2]
[398474087,1765713039899,-171.08099914,0.00017253,2]
[398474088,1765713039908,-500.0,0.0001726,2]
[398474089,1765713039917,-7073.0,0.00017273,2]
[398474090,1765713039926,-150.0,0.00017294,2]
[398474091,1765713039937,-317.0,0.00017304,2]
[398474092,1765713039946,-150.85899699,0.00017305,2]
[398474093,1765713039954,-198.3,0.00017317,2]
[398474094,1765713039964,-1000.0,0.00017321,2]
[398474095,1765713039973,-1002.18808217,0.00017321,2]
[398474096,1765713039982,-1000.0,0.00017321,2]
[398474097,1765713039991,-1005.23733551,0.00017321,2]
[398474098,1765713040000,-503.70828138,0.00017321,2]
[398474099,1765713040010,-500.0,0.00017321,2]
[398474100,1765713040020,-500.0,0.00017321,2]
[398474101,1765713040029,-1000.0,0.00017321,2]
[398474102,1765713040038,-1000.0,0.00017321,2]
[398474103,1765713040047,-934.90903881,0.00017321,2]
[398474104,1765713040056,-173.94344354,0.00017321,2]
[398474105,1765713040065,-1000.0,0.00017321,2]
[398474106,1765713040074,-1000.0,0.00017321,2]
[398474107,1765713040083,-1000.0,0.00017321,2]
[398474108,1765713040092,-420.0,0.00017382,2]
[398474109,1765713040101,-366.0,0.00017384,2]
[398474110,1765713040110,-151.0,0.000174,2]
[398474111,1765713040119,-7073.0,0.0001741,2]
[398474112,1765713040127,-317.0,0.00017428,2]
[398474113,1765713040136,-198.3,0.00017431,2]
[398474114,1765713040145,-500.0,0.00017454,2]
[398474115,1765713040155,-9216.15894683,0.00017456,2]
[398474116,1765713040164,-171.08099914,0.00017468,2]
[398474117,1765713040173,-1680.0,0.0001747,2]
[398474118,1765713040182,-5078.27226394,0.00017473,3]
[398474119,1765713040191,-250.0,0.00017473,2]
[398474120,1765713040201,-2500.0,0.00017473,2]
[398474121,1765713040210,-2500.0,0.00017473,2]
[398474122,1765713040219,-529.02502928,0.00017473,2]
[398474123,1765713040229,-304.65919483,0.00017473,2]
[398474124,1765713040237,-195.0,0.00017473,2]
[398474125,1765713040246,-300.0,0.00017473,2]
[398474126,1765713040255,-300.0,0.00017473,2]
[398474127,1765713040265,-300.0,0.00017473,2]
[398474128,1765713040275,-300.0,0.00017473,2]
[398474129,1765713040285,-439.27836621,0.00017473,2]
[398474130,1765713040294,-151.0,0.00017473,2]
[398474131,1765713040305,-151.0,0.00017473,2]
[398474132,1765713040315,-151.0,0.00017473,2]
[398474133,1765713040325,-151.0,0.00017473,2]
[398474134,1765713040334,-300.00000001,0.0001749,2]
[398474135,1765713040343,-151.0,0.0001749,2]
[398474136,1765713040352,-1000.0,0.00017521,2]
[398474137,1765713040361,-1000.0,0.00017521,2]
[398474138,1765713040371,-317.0,0.00017531,2]
[398474139,1765713040380,-500.0,0.00017534,2]
[398474140,1765713040389,-500.0,0.00017534,2]
[398474141,1765713040399,-600.0,0.00017534,2]
[398474142,1765713040408,-263.78982096,0.00017542,2]
[398474143,1765713040417,-198.3,0.00017545,2]
[398474144,1765713040427,-7073.0,0.00017547,2]
[398474145,1765713040436,-198.3,0.00017659,2]
[398474146,1765713040445,-168.0,0.00017659,2]
[398474147,1765713040455,-500.0,0.00017671,2]
[398474148,1765713040464,-9216.15894683,0.00017678,2]
[398474149,1765713040474,-151.0,0.00017678,2]
[398474150,1765713040484,-7073.0,0.00017684,2]
[398474151,1765713040495,-171.08099914,0.00017684,2]
[398474152,1765713040506,-168.0,0.00017689,2]
[398474153,1765713040515,-317.0,0.00017692,2]
[398474154,1765713040525,-1000.0,0.00017728,2]
[398474155,1765713040534,-317.0,0.00017736,2]
[398474156,1765713040544,-200.0,0.00017757,2]
[398474157,1765713040554,-198.3,0.00017772,2]
[398474158,1765713040563,-1000.0,0.00017777,2]
[398474159,1765713040572,-500.0,0.00017808,2]
[398474160,1765713040582,-500.0,0.00017808,2]
[398474161,1765713040591,-500.0,0.00017808,2]
[398474162,1765713040600,-513.97085587,0.00017808,2]
[398474163,1765713040610,-321.4128953,0.00017811,2]
[398474164,1765713040619,-150.0,0.00017813,2]
[398474165,1765713040628,-317.0,0.00017816,2]
[398474166,1765713040638,-150.28954526,0.0001782,2]
[398474167,1765713040647,-7073.0,0.00017821,2]
[398474168,1765713040657,-1000.0,0.00017832,2]
[398474169,1765713040667,-7245.6857341,0.00017844,2]
[398474170,1765713040677,-132569.5851405,0.00017844,2]
[398474171,1765713040687,-4037.2094683,0.00017844,2]
[398474172,1765713040697,-155.76566,0.00017844,2]
[398474173,1765713040706,-151.0,0.00017844,2]
[398474174,1765713040716,-3043.6442544,0.00017844,2]
[398474175,1765713041080,-151.0,0.00017844,2]
[398474176,1765713041092,-151.0,0.00017844,2]
[398474177,1765713041102,-1402.5307766,0.00017844,2]
[398474178,1765713041114,-151.0,0.00017844,2]
[398474179,1765713041125,-151.0,0.00017844,2]
[398474180,1765713041135,-277.114897,0.00017844,2]
[398474181,1765713041144,-1000.0,0.00017846,2]
[398474182,1765713041154,-300.0,0.00017856,2]
[398474183,1765713041163,-1500.0,0.00017868,2]
[398474184,1765713041173,-1000.0,0.00017868,2]
[398474185,1765713041183,-500.0,0.00017868,2]
[398474186,1765713041192,-500.0,0.00017868,2]
[398474187,1765713041201,-394.62953403,0.00017868,2]
[398474188,1765713041210,-1500.0,0.00017868,2]
[398474189,1765713041219,-1000.0,0.00017869,2]
[398474190,1765713041228,-160.04,0.0001787,2]
[398474191,1765713041238,-168.0,0.00017879,2]
[398474192,1765713041247,-198.3,0.00017886,2]
[398474193,1765713041259,-340.326,0.00017886,2]
[398474194,1765713041268,-150.0,0.0001789,2]
[398474195,1765713041277,-150.0,0.0001789,2]
[398474196,1765713041286,-150.0,0.0001789,2]
[398474197,1765713041296,-150.0,0.0001789,2]
[398474198,1765713041305,-150.0,0.0001789,2]
[398474199,1765713041314,-317.0,0.00017891,2]
[398474200,1765713041323,-179.7,0.00017892,2]
[398474201,1765713041332,-500.0,0.00017899,2]
[398474202,1765713041341,-500.0,0.00017899,2]
[398474203,1765713041351,-296272.78628464,0.000179,2]
[398474204,1765713041360,-456.39,0.000179,7]
[398474205,1765713041369,-200.0,0.000179,2]
[398474206,1765713041378,-2005.27,0.000179,2]
[398474207,1765713041387,-3538.6121,0.000179,2]
[398474208,1765713041396,-151.000002,0.000179,2]
[398474209,1765713041405,-159.515023,0.000179,2]
[398474210,1765713041414,-9216.15894683,0.000179,2]
[398474211,1765713041423,-2047.46097,0.000179,2]
[398474212,1765713041432,-156.644568,0.000179,2]
[398474213,1765713041441,-171.08099914,0.000179,2]
[398474214,1765713041451,-799.8678778,0.000179,2]
[398474215,1765713041460,-2031.48557987,0.000179,2]
[398474216,1765713041470,-151.0,0.000179,2]
[398474217,1765713041479,-151.0,0.000179,2]
[398474218,1765713041489,-344.40778002,0.000179,2]
[398474219,1765713041499,-229.0,0.00017912,2]
[398474220,1765713041508,-1000.0,0.0001792,2]
[398474221,1765713041517,-500.0,0.00017945,2]
[398474222,1765713041526,-500.0,0.00017945,2]
[398474223,1765713041535,-7073.0,0.00017958,2]
[398474224,1765713041544,-1000.0,0.00017961,2]
[398474225,1765713041554,-1347.81329607,0.00017973,2]
[398474226,1765713041563,-168.0,0.00017981,2]
[398474227,1765713041573,-171.53296756,0.00017983,2]
[398474228,1765713041582,-830.0,0.0001799,2]
[398474229,1765713041591,-321.4128953,0.0001799,2]
[398474230,1765713041601,-321.4128953,0.0001799,2]
[398474231,1765713041610,-300.0,0.00017993,2]
[398474232,1765713041619,-500.0,0.00017999,2]
[398474233,1765713041628,-500.0,0.00017999,2]
[398474234,1765713041638,-500.0,0.00017999,2]
[398474235,1765713041647,-500.0,0.00017999,2]
[398474236,1765713041656,-500.0,0.00017999,2]
[398474237,1765713041665,-500.0,0.00017999,2]
[398474238,1765713041674,-500.0,0.00017999,2]
[398474239,1765713041683,-500.0,0.00017999,2]
[398474240,1765713041692,-500.0,0.00017999,2]
[398474241,1765713041701,-387.34503477,0.00017999,2]
[398474242,1765713041710,-500.0,0.00017999,2]
[398474243,1765713041719,-506.25786618,0.00017999,2]
[398474244,1765713041729,-509.72536877,0.00017999,2]
[398474245,1765713041738,-500.0,0.00017999,5]
[398474246,1765713041747,-500.0,0.00017999,6]
[398474247,1765713041757,-647.20030892,0.00017999,7]
[398474248,1765713041766,-11426.50621491,0.00017999,2]
[398474249,1765713041776,-1020.75945298,0.00017999,5]
[398474250,1765713041786,-16346.60178862,0.00018,2]